bitfinex/quotes_BTCUSD_20250408
["timestamp","ask_amount","ask_price","bid_price","bid_amount"]
[1744131000062,0.012869,77705.0,77698.0,0.01287]
[1744131000263,0.01287,77700.0,77699.0,0.12625864]
[1744131000531,0.257397,77702.0,77699.0,0.12625864]
[1744131000532,0.257394,77702.0,77699.0,0.12625864]
[1744131000730,0.012869,77703.0,77700.0,0.12625864]
[1744131000954,0.0008,77726.0,77712.0,0.012868]
[1744131001162,0.0008,77726.0,77725.0,0.02740585]
[1744131001390,1e-06,77726.0,77725.0,0.71778449]
[1744131001682,0.0004,77759.0,77734.0,0.012864]
[1744131001946,0.0004,77759.0,77726.0,0.34]
[1744131001947,0.257281,77736.0,77735.0,0.12625864]
[1744131002139,0.257281,77736.0,77725.0,0.00947911]
[1744131002140,0.270179,77726.0,77725.0,0.00947911]
[1744131002358,0.257312,77727.0,77725.0,0.00947911]
[1744131002583,0.257306,77729.0,77723.0,0.270186]
[1744131002797,0.012866,77724.0,77718.0,0.25734]
[1744131003009,0.02346751,77728.0,77724.0,0.257318]
[1744131003253,0.012865,77726.0,77722.0,0.257325]
[1744131003470,0.012865,77726.0,77721.0,0.012866]
[1744131003471,0.270181,77726.0,77721.0,0.012866]
[1744131003703,0.012864,77733.0,77723.0,0.012866]
[1744131003914,0.257337,77719.0,77718.0,0.006]
[1744131004127,0.257334,77721.0,77718.0,0.13225864]
[1744131004361,0.012864,77732.0,77725.0,0.012865]
[1744131004591,0.0473,77745.0,77734.0,0.270151]
[1744131004810,0.270097,77750.0,77735.0,0.15623618]
[1744131005035,0.02349929,77744.0,77735.0,0.15623618]
[1744131005284,0.02349929,77749.0,77735.0,0.15366349]
[1744131005754,0.02349929,77749.0,77735.0,0.49366349]
[1744131005979,0.02349929,77752.0,77735.0,0.49366349]
[1744131006440,7.2e-07,77736.0,77735.0,0.90956349]
[1744131006661,0.0004,77759.0,77758.0,0.01286]
[1744131006890,0.0004,77759.0,77758.0,0.75343933]
[1744131006891,0.00052584,77759.0,77758.0,0.75343933]
[1744131007131,0.00052584,77759.0,77758.0,0.75086749]
[1744131007349,8.4e-07,77759.0,77758.0,1.16676749]
[1744131007772,8.4e-07,77759.0,77758.0,1.17974644]
[1744131007983,8.4e-07,77759.0,77758.0,1.18959811]
[1744131009298,8.4e-07,77759.0,77758.0,0.50651116]
[1744131009508,8.4e-07,77759.0,77758.0,0.5191827]
[1744131009726,8.4e-07,77759.0,77758.0,0.5161827]
[1744131010368,8.4e-07,77759.0,77758.0,0.13611031]
[1744131010622,0.01386084,77759.0,77758.0,0.01785167]
[1744131011261,0.01286084,77759.0,77758.0,0.00985167]
[1744131011481,0.012862,77743.0,77735.0,0.012864]
[1744131011709,0.257264,77741.0,77736.0,0.13912264]
[1744131011924,0.257264,77741.0,77735.0,0.012864]
[1744131011925,0.012861,77749.0,77744.0,0.012862]
[1744131012140,0.012862,77748.0,77742.0,0.012863]
[1744131012387,0.012862,77745.0,77737.0,0.12625864]
[1744131012593,0.012863,77741.0,77733.0,0.012864]
[1744131012803,0.012863,77738.0,77730.0,0.012865]
[1744131013023,0.012863,77739.0,77731.0,0.012864]
[1744131013265,0.257239,77749.0,77744.0,0.257252]
[1744131013486,0.001,77748.0,77747.0,0.28464685]
[1744131013725,0.001,77748.0,77747.0,0.39636464]
[1744131013938,8.4e-07,77759.0,77755.0,0.01286]
[1744131014157,8.4e-07,77759.0,77751.0,0.012861]
[1744131014158,8.4e-07,77759.0,77752.0,0.012861]
[1744131014370,8.4e-07,77759.0,77755.0,0.01286]
[1744131014629,8.4e-07,77759.0,77758.0,0.01286]
[1744131014859,8.4e-07,77759.0,77757.0,0.01286]
[1744131015075,0.01286084,77759.0,77755.0,0.00953789]
[1744131015308,0.270074,77756.0,77755.0,0.00953789]
[1744131015535,0.01286084,77759.0,77758.0,0.01286]
[1744131015536,8.4e-07,77759.0,77758.0,0.01286]
[1744131015777,8.4e-07,77759.0,77758.0,0.14169057]
[1744131016225,8.4e-07,77759.0,77755.0,0.00988748]
[1744131016453,0.270074,77756.0,77755.0,0.00988748]
[1744131016675,0.270103,77748.0,77747.0,0.4199]
[1744131016917,0.270103,77748.0,77740.0,0.257266]
[1744131016918,0.012861,77754.0,77745.0,0.257248]
[1744131017222,0.012861,77752.0,77746.0,0.257247]
[1744131017447,0.257249,77746.0,77743.0,0.257257]
[1744131017661,0.012864,77736.0,77730.0,0.352865]
[1744131017904,0.012864,77736.0,77729.0,0.12625864]
[1744131017905,0.257301,77730.0,77729.0,0.12625864]
[1744131018122,0.012866,77724.0,77719.0,0.012866]
[1744131018349,0.012866,77724.0,77714.0,0.012867]
[1744131018350,0.012866,77723.0,77718.0,0.01257575]
[1744131018572,0.270224,77713.0,77712.0,0.4159]
[1744131018844,0.270224,77715.0,77708.0,0.012868]
[1744131019054,0.012868,77712.0,77705.0,0.270251]
[1744131019279,0.270225,77713.0,77712.0,0.00041972]
[1744131019752,0.270225,77713.0,77712.0,0.01030141]
[1744131019984,0.318725,77713.0,77712.0,0.00041972]
[1744131020428,0.46835897,77713.0,77712.0,0.00041972]
[1744131020675,0.012868,77712.0,77711.0,0.00800072]
[1744131020902,0.012868,77712.0,77711.0,7.2e-07]
[1744131020903,0.47912664,77712.0,77711.0,7.2e-07]
[1744131021085,0.01287,77698.0,77685.0,0.37230474]
[1744131021364,0.01287,77695.0,77685.0,0.11485874]
[1744131021592,0.01287,77695.0,77694.0,0.00992484]
[1744131022325,0.18632864,77695.0,77694.0,6e-07]
[1744131022556,0.19801323,77695.0,77694.0,6e-07]
[1744131022770,0.09511224,77695.0,77694.0,6e-07]
[1744131023455,0.07055765,77695.0,77694.0,6e-07]
[1744131023660,0.005,77695.0,77694.0,6e-07]
[1744131023881,0.01787,77695.0,77694.0,6e-07]
[1744131024107,0.01287,77695.0,77694.0,6e-07]
[1744131024333,0.25739,77703.0,77694.0,6e-07]
[1744131024584,0.257371,77709.0,77695.0,0.01287]
[1744131024861,0.270218,77715.0,77706.0,0.257377]
[1744131025052,0.012869,77702.0,77693.0,0.012871]
[1744131025272,0.01287,77698.0,77692.0,0.22408]
[1744131025496,0.01287,77700.0,77692.0,0.494377]
[1744131025748,0.257404,77699.0,77694.0,6e-07]
[1744131025981,0.001,77695.0,77694.0,6e-07]
[1744131026228,0.001,77695.0,77694.0,0.00984192]
[1744131026496,0.01287,77695.0,77694.0,0.00984192]
[1744131026759,0.01287,77695.0,77694.0,6e-07]
[1744131027009,0.01287,77695.0,77694.0,0.0010006]
[1744131027451,0.04785967,77695.0,77694.0,6e-07]
[1744131027668,0.04885967,77695.0,77694.0,6e-07]
[1744131028312,0.03598967,77695.0,77694.0,6e-07]
[1744131029194,0.02432778,77695.0,77694.0,6e-07]
[1744131029426,0.03619778,77695.0,77694.0,6e-07]
[1744131029650,0.03919778,77695.0,77694.0,6e-07]
[1744131029886,0.03919778,77695.0,77683.0,0.0003344]
[1744131029887,0.012872,77684.0,77683.0,1e-06]
[1744131030138,0.270363,77673.0,77672.0,8e-07]
[1744131030359,0.270398,77663.0,77662.0,0.0003356]
[1744131030796,0.270367,77672.0,77664.0,0.012875]
[1744131031023,0.257503,77669.0,77663.0,0.012876]
[1744131031298,0.012876,77663.0,77662.0,0.0004606]
[1744131031760,0.02447433,77663.0,77662.0,0.0004606]
[1744131032648,0.03611654,77663.0,77662.0,0.0004606]
[1744131033326,0.25797518,77663.0,77662.0,6e-07]
[1744131033541,0.48268558,77663.0,77662.0,6e-07]
[1744131033802,0.48580042,77663.0,77662.0,6e-07]
[1744131034028,0.270436,77652.0,77651.0,0.0007344]
[1744131034248,0.610447,77649.0,77648.0,8e-07]
[1744131034437,0.610447,77649.0,77648.0,0.00012643]
[1744131034438,0.73670564,77649.0,77648.0,0.00012643]
[1744131034679,0.76518892,77649.0,77648.0,0.00012643]
[1744131034895,0.76518892,77649.0,77648.0,4.3e-07]
[1744131036181,0.63893028,77649.0,77648.0,4.3e-07]
[1744131036460,0.61567909,77649.0,77648.0,4.3e-07]
[1744131036682,0.28009784,77649.0,77648.0,4.3e-07]
[1744131037134,0.40635648,77649.0,77648.0,4.3e-07]
[1744131037354,0.40132175,77649.0,77648.0,4.3e-07]
[1744131037570,0.41032175,77649.0,77648.0,4.3e-07]
[1744131037981,0.27506311,77649.0,77648.0,4.3e-07]
[1744131038183,0.42447987,77649.0,77648.0,4.3e-07]
[1744131038395,0.43347987,77649.0,77648.0,4.3e-07]
[1744131039039,0.35288,77634.0,77626.0,3.3e-07]
[1744131039237,0.35288,77634.0,77621.0,3.3e-07]
[1744131039238,0.27054,77622.0,77621.0,3.3e-07]
[1744131039451,0.39679864,77622.0,77621.0,3.3e-07]
[1744131039663,0.74133224,77622.0,77621.0,3.3e-07]
[1744131039869,0.6631736,77622.0,77621.0,3.3e-07]
[1744131040074,0.2750736,77622.0,77621.0,3.3e-07]
[1744131040282,0.0045336,77622.0,77621.0,3.3e-07]
[1744131040497,0.012882,77622.0,77621.0,3.3e-07]
[1744131040695,0.02716493,77622.0,77621.0,3.3e-07]
[1744131041768,0.01626411,77622.0,77621.0,3.3e-07]
[1744131042870,0.01626411,77622.0,77616.0,9.3e-07]
[1744131042871,0.610558,77617.0,77616.0,9.3e-07]
[1744131043105,0.270617,77600.0,77599.0,0.02]
[1744131043332,0.489617,77600.0,77599.0,0.02]
[1744131043566,0.49578366,77600.0,77599.0,0.02]
[1744131043790,0.49578366,77600.0,77589.0,0.0001679]
[1744131043791,0.270645,77592.0,77589.0,0.0001679]
[1744131044021,0.39690364,77592.0,77589.0,0.0001679]
[1744131044241,0.40378725,77592.0,77589.0,0.0001679]
[1744131044695,0.74378725,77592.0,77591.0,0.00082032]
[1744131045180,0.61752861,77592.0,77591.0,0.00082032]
[1744131045804,0.7553469,77592.0,77591.0,0.00082032]
[1744131046248,0.7553469,77592.0,77588.0,2.2e-07]
[1744131046249,0.34,77591.0,77588.0,2.2e-07]
[1744131046509,0.352888,77589.0,77588.0,2.2e-07]
[1744131046726,0.27067,77585.0,77584.0,2e-08]
[1744131046954,0.39692864,77585.0,77584.0,2e-08]
[1744131047211,0.41644678,77585.0,77584.0,2e-08]
[1744131047483,0.75644678,77585.0,77584.0,2e-08]
[1744131047718,0.79113516,77585.0,77584.0,2e-08]
[1744131047949,0.012892,77566.0,77561.0,8e-07]
[1744131048194,0.27075,77562.0,77561.0,8e-07]
[1744131048639,0.27818515,77562.0,77561.0,8e-07]
[1744131049118,0.2897448,77562.0,77561.0,8e-07]
[1744131049341,0.2897448,77562.0,77561.0,0.00012689]
[1744131049589,0.0189948,77562.0,77561.0,0.39713953]
[1744131049793,0.01709382,77562.0,77561.0,0.39713953]
[1744131050009,0.270734,77567.0,77562.0,0.257858]
[1744131050229,0.257845,77566.0,77562.0,0.38411664]
[1744131050456,0.257849,77565.0,77561.0,0.25798689]
[1744131050673,0.257854,77564.0,77561.0,0.00012689]
[1744131050889,0.012891,77571.0,77564.0,0.012892]
[1744131051092,0.005,77567.0,77565.0,0.27074]
[1744131051312,0.005,77567.0,77565.0,0.13915064]
[1744131051522,0.005,77567.0,77566.0,0.270736]
[1744131051796,0.005,77567.0,77566.0,0.39699464]
[1744131052003,0.005,77567.0,77566.0,0.12625864]
[1744131052444,0.270659,77589.0,77577.0,0.01289]
[1744131052652,0.2578,77580.0,77578.0,0.12625864]
[1744131052867,0.270687,77581.0,77578.0,0.12625864]
[1744131053075,0.012891,77571.0,77562.0,0.012892]
[1744131053286,0.5809558,77600.0,77573.0,0.257821]
[1744131053500,0.257815,77575.0,77574.0,0.12625864]
[1744131053709,0.257805,77578.0,77573.0,0.00971938]
[1744131053916,0.012889,77581.0,77574.0,0.38407364]
[1744131054123,0.012888,77588.0,77575.0,0.12625864]
[1744131054367,0.00520066,77580.0,77575.0,0.12625864]
[1744131054604,0.012892,77567.0,77534.0,0.4159]
[1744131054820,0.012892,77567.0,77530.0,0.5809558]
[1744131054821,0.01289,77576.0,77568.0,0.257836]
[1744131055044,0.01289,77575.0,77569.0,0.12625864]
[1744131055257,0.257773,77588.0,77579.0,0.01289]
[1744131055504,0.5809558,77600.0,77575.0,0.257814]
[1744131055505,0.01289,77579.0,77575.0,0.257814]
[1744131055707,0.257796,77581.0,77576.0,0.12625864]
[1744131055912,0.270684,77581.0,77576.0,0.12625864]
[1744131056145,0.012889,77581.0,77576.0,0.12625864]
[1744131056352,0.0463,77602.0,77583.0,0.012889]
[1744131056560,0.012888,77591.0,77586.0,0.012888]
[1744131056993,0.257769,77589.0,77585.0,0.25778]
[1744131057222,0.257743,77597.0,77586.0,0.13914664]
[1744131057449,0.012887,77593.0,77586.0,0.13914664]
[1744131057668,0.012887,77594.0,77586.0,0.14882767]
[1744131057877,0.270604,77604.0,77586.0,0.16336852]
[1744131058084,0.01557956,77587.0,77586.0,0.16336852]
[1744131058498,0.004,77587.0,77586.0,0.15048052]
[1744131058706,0.016888,77587.0,77586.0,0.13593967]
[1744131058905,0.016888,77587.0,77586.0,0.00968103]
[1744131059109,0.012888,77587.0,77586.0,0.00968103]
[1744131059326,0.012889,77582.0,77574.0,0.01454085]
[1744131059565,0.26946689,77581.0,77576.0,0.01454085]
[1744131059777,0.01167089,77581.0,77577.0,0.38406564]
[1744131060258,0.01167089,77581.0,77580.0,0.012889]
[1744131060492,0.01167089,77581.0,77580.0,0.12625864]
[1744131060726,0.270682,77582.0,77580.0,0.12625864]
[1744131060976,0.257786,77584.0,77581.0,0.12625864]
[1744131061212,0.27068,77582.0,77581.0,0.12625864]
[1744131061684,0.01167089,77585.0,77582.0,0.257791]
[1744131061959,0.01167089,77585.0,77584.0,0.270674]
[1744131062179,0.257724,77603.0,77584.0,0.12625864]
[1744131062180,0.257752,77594.0,77584.0,0.12625864]
[1744131062404,0.012888,77591.0,77576.0,0.00953783]
[1744131062626,0.257754,77594.0,77579.0,0.01289]
[1744131062892,0.02336557,77590.0,77581.0,0.257795]
[1744131063084,0.02336557,77590.0,77586.0,0.257778]
[1744131063544,0.02336557,77592.0,77586.0,0.257776]
[1744131063756,0.257762,77591.0,77588.0,0.257771]
[1744131063977,0.01169507,77590.0,77589.0,0.257766]
[1744131064239,0.03506064,77590.0,77589.0,0.257766]
[1744131064971,6.4e-07,77590.0,77589.0,0.41145349]
[1744131065209,0.0004185,77603.0,77602.0,0.28515185]
[1744131065458,0.0004185,77603.0,77602.0,0.257725]
[1744131065948,0.0004185,77603.0,77602.0,0.39686964]
[1744131066222,0.0004185,77603.0,77602.0,0.41141049]
[1744131067264,5e-07,77603.0,77602.0,0.76129692]
[1744131068691,5e-07,77603.0,77602.0,1.19013601]
[1744131068917,5e-07,77603.0,77602.0,1.19213601]
[1744131069361,5e-07,77603.0,77602.0,1.17919692]
[1744131069609,5e-07,77603.0,77602.0,0.82465607]
[1744131069848,5e-07,77603.0,77602.0,1.16265607]
[1744131070116,5e-07,77603.0,77602.0,1.19599989]
[1744131070392,0.0003364,77617.0,77616.0,0.62510185]
[1744131070667,0.257605,77638.0,77629.0,0.012881]
[1744131070944,0.258002,77639.0,77632.0,0.012881]
[1744131071174,0.00046195,77633.0,77632.0,0.13913964]
[1744131071454,0.00046195,77633.0,77632.0,0.00981002]
[1744131071455,0.01334295,77633.0,77632.0,0.00981002]
[1744131071667,0.00046195,77633.0,77632.0,0.14894966]
[1744131071909,0.00046195,77633.0,77618.0,0.01454085]
[1744131072169,0.012881,77632.0,77627.0,0.25764]
[1744131072443,0.00046195,77633.0,77632.0,0.270506]
[1744131072696,9.5e-07,77633.0,77632.0,1.16720549]
[1744131072943,0.00400095,77633.0,77632.0,1.16720549]
[1744131073190,1e-06,77639.0,77638.0,0.610485]
[1744131073458,1e-06,77639.0,77638.0,0.96708449]
[1744131073705,0.000336,77663.0,77662.0,0.270402]
[1744131073952,0.00046192,77663.0,77662.0,0.39666064]
[1744131074870,0.00046192,77663.0,77662.0,0.41120149]
[1744131075551,0.00046192,77663.0,77662.0,0.76065663]
[1744131075767,0.00446192,77663.0,77662.0,0.76065663]
[1744131076193,0.00046192,77663.0,77662.0,0.50313063]
[1744131076840,9.2e-07,77663.0,77662.0,0.50313063]
[1744131077051,0.000336,77668.0,77667.0,0.012875]
[1744131077260,1e-06,77668.0,77667.0,0.80225757]
[1744131077468,1e-06,77668.0,77667.0,0.79968349]
[1744131077887,0.0004,77669.0,77668.0,0.36741585]
[1744131078112,0.0004,77699.0,77678.0,0.62488685]
[1744131078291,0.0004,77699.0,77698.0,0.270276]
[1744131078521,0.0004,77699.0,77698.0,0.12625864]
[1744131078730,0.2582229,77699.0,77698.0,0.12625864]
[1744131078976,0.00215918,77699.0,77698.0,0.12625864]
[1744131079220,0.00215918,77699.0,77698.0,0.13588277]
[1744131079960,0.00215918,77699.0,77698.0,0.40615877]
[1744131080216,0.00215918,77699.0,77698.0,0.42069962]
[1744131080465,0.0226899,77699.0,77698.0,0.13688277]
[1744131080723,0.0226899,77699.0,77698.0,0.01062413]
[1744131080967,0.02419531,77699.0,77698.0,0.001]
[1744131081236,0.02495939,77699.0,77698.0,0.001]
[1744131081504,0.49121803,77699.0,77698.0,1e-06]
[1744131081760,0.25748,77676.0,77671.0,0.257494]
[1744131081990,0.270304,77690.0,77689.0,0.00958452]
[1744131082200,0.257486,77674.0,77672.0,0.12625864]
[1744131082461,0.257489,77674.0,77672.0,0.12625864]
[1744131082689,0.00207078,77673.0,77664.0,0.257517]
[1744131082927,0.00207078,77673.0,77663.0,0.21916655]
[1744131082928,0.25956078,77673.0,77665.0,0.38377064]
[1744131083179,0.00207078,77673.0,77672.0,0.270367]
[1744131083415,0.00207078,77673.0,77672.0,0.39662564]
[1744131083650,0.012872,77682.0,77672.0,0.12625864]
[1744131083900,0.012874,77671.0,77667.0,0.257507]
[1744131084132,0.257504,77669.0,77664.0,0.257517]
[1744131084367,0.012873,77676.0,77663.0,0.00967244]
[1744131084368,0.25746,77682.0,77674.0,0.012874]
[1744131084587,0.012872,77685.0,77681.0,0.257461]
[1744131084804,0.012872,77685.0,77682.0,0.12625864]
[1744131084805,0.270329,77683.0,77682.0,0.12625864]
[1744131085481,0.270329,77683.0,77682.0,0.00957216]
[1744131085962,0.270329,77683.0,77664.0,0.012875]
[1744131085963,0.012873,77676.0,77669.0,0.012875]
[1744131086220,0.012873,77676.0,77670.0,0.13913264]
[1744131086443,0.257467,77680.0,77676.0,0.257477]
[1744131086669,0.270342,77679.0,77677.0,0.12625864]
[1744131086913,0.257467,77680.0,77677.0,0.12625864]
[1744131087134,0.257471,77679.0,77677.0,0.1359255]
[1744131087604,0.012873,77678.0,77677.0,0.00966686]
[1744131087837,0.012877,77657.0,77649.0,0.012878]
[1744131088070,0.012878,77651.0,77645.0,0.4159]
[1744131088278,0.257559,77652.0,77650.0,0.12625864]
[1744131088491,0.012878,77651.0,77650.0,0.12625864]
[1744131088720,0.257559,77652.0,77650.0,0.12625864]
[1744131088926,0.012876,77658.0,77650.0,0.12625864]
[1744131089139,0.25755,77655.0,77651.0,0.257562]
[1744131089349,0.257559,77652.0,77650.0,0.00012592]
[1744131089560,0.270436,77652.0,77651.0,0.12625864]
[1744131090345,0.012877,77656.0,77651.0,0.12625864]
[1744131090560,0.257533,77660.0,77656.0,0.257545]
[1744131090774,0.00298561,77655.0,77654.0,0.257552]
[1744131090995,0.27044,77651.0,77650.0,0.00012592]
[1744131091238,0.27364179,77651.0,77650.0,0.00012592]
[1744131091460,0.012878,77650.0,77649.0,5.7e-07]
[1744131091683,0.27051,77631.0,77630.0,0.0001674]
[1744131091913,0.27051,77631.0,77630.0,0.12642604]
[1744131092136,0.27329637,77631.0,77630.0,0.12642604]
[1744131092600,0.00278637,77631.0,77630.0,0.13619341]
[1744131092797,0.00278637,77631.0,77630.0,0.16619147]
[1744131093019,0.270426,77655.0,77649.0,0.012878]
[1744131093240,0.257587,77644.0,77639.0,0.257601]
[1744131093472,0.012878,77647.0,77638.0,0.2096]
[1744131093473,0.00310215,77643.0,77641.0,0.12625864]
[1744131093707,0.257629,77631.0,77630.0,0.00993477]
[1744131093998,0.270506,77632.0,77630.0,0.13619341]
[1744131094214,0.01561749,77631.0,77630.0,0.00993477]
[1744131094650,0.01561749,77631.0,77630.0,0.0001674]
[1744131094860,0.01561749,77631.0,77621.0,0.0004]
[1744131094861,0.27054,77622.0,77621.0,4e-07]
[1744131095073,0.74188181,77622.0,77621.0,4e-07]
[1744131095311,0.74188181,77622.0,77621.0,0.00012595]
[1744131095312,0.61562317,77622.0,77621.0,0.00012595]
[1744131095544,0.34508317,77622.0,77621.0,0.00012595]
[1744131095778,0.60274117,77622.0,77621.0,0.00012595]
[1744131096004,0.27562317,77622.0,77621.0,0.00012595]
[1744131097518,0.28462317,77622.0,77621.0,0.00112595]
[1744131098022,0.27562317,77622.0,77621.0,0.00012595]
[1744131098482,0.28362317,77622.0,77621.0,0.00012595]
[1744131098705,0.01308317,77622.0,77621.0,0.00012595]
[1744131098920,0.00508317,77622.0,77621.0,0.01300895]
[1744131099138,0.009,77622.0,77621.0,0.00012595]
[1744131099364,0.0131673,77622.0,77621.0,0.00012595]
[1744131099596,0.0131673,77622.0,77621.0,0.13926759]
[1744131099814,0.0131673,77622.0,77621.0,0.15380844]
[1744131100040,0.009,77622.0,77621.0,0.15380844]
[1744131100285,0.009,77622.0,77621.0,0.49380844]
[1744131100490,0.222557,77656.0,77646.0,0.270457]
[1744131100761,0.048,77668.0,77661.0,0.012876]
[1744131101020,0.012873,77677.0,77669.0,0.270376]
[1744131101290,0.01283242,77684.0,77679.0,0.012873]
[1744131101586,0.01283242,77684.0,77670.0,0.12625864]
[1744131101587,0.270276,77698.0,77690.0,0.012871]
[1744131101809,0.0004,77699.0,77698.0,0.01287]
[1744131102045,0.0004,77699.0,77698.0,0.13912864]
[1744131102268,0.00081998,77699.0,77698.0,0.13912864]
[1744131102532,0.00081998,77699.0,77698.0,0.14170257]
[1744131102799,0.01368998,77699.0,77698.0,0.00963837]
[1744131103007,0.01368998,77699.0,77698.0,0.12625864]
[1744131103220,0.00081998,77699.0,77698.0,0.12625864]
[1744131103845,0.00081998,77699.0,77698.0,0.13912864]
[1744131104073,0.00081998,77699.0,77698.0,0.12625864]
[1744131104539,0.00081998,77699.0,77698.0,0.1489633]
[1744131104969,0.00381998,77699.0,77698.0,0.1489633]
[1744131105212,0.00381998,77699.0,77698.0,0.1360933]
[1744131105970,0.00381998,77699.0,77698.0,0.1489633]
[1744131106215,0.00381998,77699.0,77698.0,0.16607791]
[1744131106447,5.8e-07,77702.0,77699.0,0.35454085]
[1744131106677,3.8e-07,77704.0,77703.0,0.62479985]
[1744131106888,0.0203356,77730.0,77708.0,0.610241]
[1744131107086,0.0203356,77730.0,77708.0,1.16694049]
[1744131107087,0.00046169,77709.0,77708.0,1.16694049]
[1744131107937,6.9e-07,77709.0,77708.0,1.16694049]
[1744131108585,6.9e-07,77709.0,77708.0,1.17094049]
[1744131109673,6.9e-07,77709.0,77708.0,1.32094049]
[1744131109883,0.0203356,77730.0,77728.0,0.28471285]
[1744131110137,0.0203356,77730.0,77728.0,1.37139149]
[1744131110588,0.0203356,77730.0,77728.0,1.16687149]
[1744131111035,0.0044,77729.0,77728.0,1.16687149]
[1744131111466,0.0004,77729.0,77728.0,1.16687149]
[1744131111893,0.0014,77729.0,77728.0,1.16687149]
[1744131112320,0.014265,77729.0,77728.0,0.55188344]
[1744131112546,0.271569,77729.0,77728.0,0.0097248]
[1744131112756,0.257318,77725.0,77720.0,0.270197]
[1744131112968,0.270193,77722.0,77720.0,0.12625864]
[1744131113241,0.270199,77721.0,77720.0,0.00971322]
[1744131113479,0.270183,77725.0,77719.0,0.257335]
[1744131113691,0.257327,77722.0,77718.0,0.012867]
[1744131113904,0.270184,77725.0,77720.0,0.002]
[1744131114116,0.257319,77725.0,77721.0,0.12625864]
[1744131114321,0.257323,77724.0,77721.0,0.12625864]
[1744131114733,0.012866,77722.0,77721.0,0.12625864]
[1744131114957,0.270196,77721.0,77720.0,0.00947664]
[1744131115162,0.012866,77720.0,77719.0,0.002]
[1744131115506,0.0203356,77730.0,77720.0,0.012866]
[1744131115714,0.0203356,77730.0,77721.0,0.38358664]
[1744131115715,0.257315,77726.0,77721.0,0.38358664]
[1744131115935,0.25733,77721.0,77720.0,0.12625864]
[1744131116151,0.012866,77720.0,77719.0,0.002]
[1744131116605,0.012872,77686.0,77685.0,0.4159]
[1744131116834,0.012872,77686.0,77678.0,0.20448]
[1744131116835,0.257463,77682.0,77679.0,0.38372664]
[1744131117350,0.257426,77693.0,77688.0,0.270309]
[1744131117617,0.01287,77696.0,77689.0,0.12625864]
[1744131117872,0.34,77712.0,77679.0,0.00965437]
[1744131117873,0.270339,77680.0,77679.0,0.00965437]
[1744131118346,0.270339,77680.0,77679.0,0.12625864]
[1744131118552,0.012872,77686.0,77679.0,0.12625864]
[1744131118787,0.012872,77685.0,77680.0,0.12625864]
[1744131119009,0.257461,77682.0,77680.0,0.12625864]
[1744131119261,0.270333,77682.0,77680.0,0.12625864]
[1744131119516,0.270339,77680.0,77679.0,0.00956069]
[1744131120035,0.012872,77686.0,77680.0,0.012873]
[1744131120272,0.270339,77680.0,77678.0,0.00041998]
[1744131120502,0.012873,77679.0,77678.0,0.00041998]
[1744131120995,0.012869,77704.0,77696.0,0.257412]
[1744131121206,0.5809558,77720.0,77704.0,0.012869]
[1744131121207,0.257358,77713.0,77704.0,0.012869]
[1744131121437,0.012868,77709.0,77704.0,0.270254]
[1744131121675,0.257406,77698.0,77697.0,0.12625864]
[1744131121902,0.012869,77705.0,77698.0,0.257404]
[1744131121903,0.012869,77704.0,77698.0,0.257404]
[1744131122138,0.27028,77697.0,77696.0,0.00983498]
[1744131122591,0.27028,77697.0,77696.0,0.00996087]
[1744131123033,0.012875,77667.0,77650.0,0.05761114]
[1744131123273,0.270384,77667.0,77650.0,0.012878]
[1744131123520,0.270384,77667.0,77653.0,0.012877]
[1744131123761,0.270384,77667.0,77654.0,0.012877]
[1744131123999,0.012874,77673.0,77654.0,0.012877]
[1744131124000,0.012872,77682.0,77672.0,0.012874]
[1744131124254,0.012874,77675.0,77666.0,0.12642594]
[1744131124483,0.012875,77667.0,77666.0,0.00961058]
[1744131125168,0.257506,77669.0,77666.0,0.00961058]
[1744131125421,0.2575877,77682.0,77677.0,0.257474]
[1744131125641,0.012874,77675.0,77667.0,0.12625864]
[1744131125864,0.012875,77667.0,77661.0,0.0001673]
[1744131126332,0.018875,77667.0,77666.0,0.01061058]
[1744131127005,0.012875,77667.0,77666.0,0.00961058]
[1744131127239,0.017875,77667.0,77666.0,0.00961058]
[1744131127714,0.257484,77675.0,77670.0,0.257497]
[1744131127937,0.012873,77680.0,77673.0,0.01454085]
[1744131128166,0.20456,77693.0,77680.0,0.270339]
[1744131128167,0.25745,77685.0,77680.0,0.270339]
[1744131128428,0.012871,77694.0,77681.0,0.15367249]
[1744131128862,0.257378,77707.0,77681.0,0.49624695]
[1744131128864,0.012868,77707.0,77681.0,0.91214695]
[1744131129091,0.012869,77702.0,77681.0,0.90957249]
[1744131129361,0.01287,77699.0,77681.0,0.90957249]
[1744131129588,0.257431,77691.0,77681.0,0.90957249]
[1744131129828,0.257454,77684.0,77681.0,0.55669949]
[1744131130058,0.012871,77690.0,77681.0,0.56957249]
[1744131130337,0.11285863,77775.0,77681.0,0.56957249]
[1744131130338,0.012869,77701.0,77681.0,0.90957249]
[1744131130587,0.0011257,77682.0,77681.0,0.91557249]
[1744131130830,0.0011257,77682.0,77681.0,0.54815864]
[1744131131049,0.0001257,77682.0,77681.0,0.55669949]
[1744131131275,0.0129977,77682.0,77681.0,0.55969949]
[1744131131731,0.0001257,77682.0,77681.0,0.55969949]
[1744131131971,0.0001257,77682.0,77681.0,0.91257249]
[1744131133142,0.0001257,77682.0,77681.0,0.89969949]
[1744131133358,0.0001257,77682.0,77681.0,0.54515864]
[1744131133584,0.0001257,77682.0,77681.0,0.55803164]
[1744131133812,0.257364,77711.0,77681.0,0.89969949]
[1744131134031,0.270301,77691.0,77690.0,0.12625864]
[1744131134262,0.257427,77692.0,77690.0,0.12625864]
[1744131134501,0.01287,77700.0,77690.0,0.12625864]
[1744131134721,0.257403,77700.0,77695.0,0.01287]
[1744131134943,0.257403,77700.0,77689.0,0.012871]
[1744131134944,0.27028,77697.0,77696.0,0.12625864]
[1744131135170,0.012868,77708.0,77701.0,0.257396]
[1744131135397,0.257371,77709.0,77706.0,0.012869]
[1744131135611,0.257371,77709.0,77701.0,0.012869]
[1744131135612,0.257393,77702.0,77701.0,0.00983632]
[1744131135840,0.270262,77702.0,77701.0,0.00983632]
[1744131136061,0.257416,77695.0,77692.0,0.673326]
[1744131136333,0.25741,77697.0,77693.0,0.38368164]
[1744131136556,0.257416,77696.0,77693.0,0.38368164]
[1744131136771,0.01287,77696.0,77693.0,0.13597902]
[1744131136992,0.270286,77695.0,77693.0,0.13597902]